Workbook

Sheet Příjmy 2013
B1: Rozpočet Mikroregionu Krnovsko na rok 2013
A2: Příjmy | C2: Příjmy
A3: ÚZ | B3: § | C3: Položka | D3: Obsah | E3: Obec | G3: Schválený rozpočet | H3: Mimořádné příspěvky 1% dotace ROP, PRV | I3: Rozpočtová změna | J3: Rozpočet po změnách
E4: počet obv. | F4: Kč/obec | G4: tis. Kč | H4: tis. Kč | I4: tis. Kč | J4: tis. Kč
B5: Pozn.: | C5: 30. VH odsouhlasila příspěvek obce ve výši na jednoho obv./rok: | F5: 12
C6: 4121 | D6: Neinvestiční dotace od obcí -celkem za obce | H6: =SUM(H7:H31) -> 145.5
D7: z toho Bohušov | E7: 423 | F7: =SUM(E7*F5) -> 5076
D8: Brantice | E8: 1329 | F8: =SUM(E8*F5) -> 15948
D9: Býkov-Láryšov | E9: 154 | F9: =SUM(E9*F5) -> 1848
D10: Čaková | E10: 303 | F10: =SUM(E10*F5) -> 3636
D11: Dívčí Hrad | E11: 274 | F11: =SUM(E11*F5) -> 3288
D12: Heřmanovice | E12: 371 | F12: =SUM(E12*F5) -> 4452
D13: Hlinka | E13: 214 | F13: =SUM(E13*F5) -> 2568
D14: Holčovice | E14: 716 | F14: =SUM(E14*F5) -> 8592
D15: Hošťálkovy | E15: 579 | F15: =SUM(E15*F5) -> 6948
D16: Janov | E16: 311 | F16: =SUM(E16*F5) -> 3732
D17: Jindřichov | E17: 1362 | F17: =SUM(E17*F5) -> 16344 | H17: 24.3
D18: Krasov | E18: 347 | F18: =SUM(E18*F5) -> 4164
D19: Krnov | E19: 24658 | F19: =SUM(E19*F5) -> 295896
D20: Lichnov | E20: 1090 | F20: =SUM(E20*F5) -> 13080 | H20: 24.2
D21: Liptaň | E21: 475 | F21: =SUM(E21*F5) -> 5700
D22: Město Albrechtice | E22: 3598 | F22: =SUM(E22*F5) -> 43176 | H22: 24.2
D23: Osoblaha | E23: 1107 | F23: =SUM(E23*F5) -> 13284 | H23: 24.3
D24: Petrovice | E24: 136 | F24: =SUM(E24*F5) -> 1632
D25: Rusín | E25: 146 | F25: =SUM(E25*F5) -> 1752
D26: Slezské Pavlovice | E26: 219 | F26: =SUM(E26*F5) -> 2628
D27: Slezské Rudoltice | E27: 586 | F27: =SUM(E27*F5) -> 7032
D28: Třemešná | E28: 906 | F28: =SUM(E28*F5) -> 10872
D29: Úvalno | E29: 996 | F29: =SUM(E29*F5) -> 11952 | H29: 24.2
D30: Vysoká | E30: 317 | F30: =SUM(E30*F5) -> 3804
D31: Zátor | E31: 1199 | F31: =SUM(E31*F5) -> 14388 | H31: 24.3
E32: 41816 | F32: 501792 | G32: 501.8
C33: 4121 | D33: Mimořádný příspěvek od obcí za projekt Modernizace veřejných prostranství | G33: 0
D34: 40,12% z projektu (Hošťálkovy,Lichnov,Třemešná,Úvalno,Vysoká) 5x67000 | G34: 335
C35: 4122 | D35: Neinves.přijatý transfer od KÚ-doplatek Poradenství,společné akce a propagace MRK | G35: 229.5
C36: 4222 | D36: Investiční přijatý transfer od KÚ-doplatek Modernizace veřejných prostranství | G36: 250
C37: 4122 | D37: Fond mikroprojektů Euroregionu Praděd - příjem až v 2014 | G37: 0
C38: 4122 | D38: NIV transfer z KÚ na projekt 2013-2014 ( předpokládaný příjem 1. zálohy v 2013 ) | G38: 200
C39: 4222 | D39: IV transfér z KÚ -projekt 2013 ( předpokládáný příjem 1. zálohy v 2013 ) | G39: 180
C40: 2141 | D40: Příjmy z úroků | G40: 6
D41: Příjmy celkem | G41: =SUM(G32:G40) -> 1702.3

Sheet Výdaje 2013
A1: Rozpočet Mikroregionu Krnovsko na rok 2013
A3: Výdaje
A5: § | B5: Položka | C5: Obsah | D5: Schválený rozpočet | E5: Rozpočtová změna | F5: Rozpočet po změnách
D6: tis. Kč | E6: tis. Kč | F6: tis. Kč
A7: 3419 | B7: 5169 | C7: Hokejová liga - projekt (pronájem zimního stadionu ) | D7: 94
A8: 3421 | B8: 5339 | C8: Žákovská liga ve stolním tenise | D8: 15
A9: 3429 | B9: 5169 | C9: Fond Mikroprojektu Euroregionu Praděd | D9: 250 | G9: ?
A10: 6409 | B10: 5137 | C10: DKP | D10: 4
B11: 5139 | C11: Materiál - kancelář. potřeby | D11: 60
B12: 5161 | C12: Služby pošt | D12: 2
B13: 5162 | C13: Služby telekomunikací | D13: 8
B14: 5163 | C14: Služby peněžních ústavů - poplatky za BÚ | D14: 6
B15: 5164 | C15: Pronájem kanceláře | D15: 24
B16: 5166 | C16: Konzultační a poradenské služby, účetní služby | D16: 492
B17: 5168 | C17: Služby zpracování dat - servis software, web stránky | D17: 8
B18: 5169 | C18: Tiskové a propagační služby | D18: 160
B19: 5172 | C19: Programové vybavení | D19: 8
B20: 5175 | C20: Pohoštění ( SR+VH + oběd- školení účetních) | D20: 15
B21: 5362 | C21: Platby daní a poplatků (FÚ) | D21: 1
A22: Výdaje celkem | D22: =SUM(D7:D21) -> 1147

Sheet Financování 2013
A1: Rozpočet Mikroregionu Krnovsko na rok 2013
A3: Financování
A5: § | B5: Položka | C5: Obsah | D5: Schválený rozpočet | E5: Rozpočtová změna | F5: Rozpočet po změnách
D6: tis. Kč | E6: tis. Kč | F6: tis. Kč
B7: 8115 | C7: Změna stavu krátkodobých prostředků | D7: -555.3
A8: Financování celkem | D8: =SUM(D7) -> -555.3
A14: Zpracovali: | C14: Rostislav Balner -manažer
C15: Mgr.Michal Skalka - manažer
C16: Latochová Zuzana, ekonomka MRK
A17: Dne: | B17: 2012-11-22
A20: Starosta obce, která je členem svazku, potvrzuje, že rozpočet MRK, byl projednán v OZ
A21: a zveřejněném na úřední desce ( v tištěné i elektronické podobě ).
A22: Vyvěšen dne:
A24: Sejmut dne:
A25: Sejmut dne:
A29: Rozpočet schválen na valné hromadě Mikroregionu Krnovsko dne 13.12.2012
